bitfinex/quotes_ETHUSD_20250318
["timestamp","ask_amount","ask_price","bid_price","bid_amount"]
[1742323414134,7.88669073,1885.9,1885.8,5.3968778]
[1742323417037,8.67059073,1885.9,1885.8,5.3968778]
[1742323417197,8.67059073,1885.9,1885.8,0.0940978]
[1742323417397,8.67059073,1885.9,1885.6,16.45161478]
[1742323417598,5.8979,1885.9,1885.8,0.09390741]
[1742323417807,7.88669073,1885.9,1885.8,5.30278]
[1742323418120,7.88669073,1885.9,1885.8,5.39668741]
[1742323420304,7.88669073,1885.9,1885.8,0.09390741]
[1742323421904,8.65339073,1885.9,1885.8,0.09390741]
[1742323422105,8.65339073,1885.9,1885.6,10.6065]
[1742323422337,8.65339073,1885.9,1885.7,5.39740693]
[1742323423202,2.77269073,1885.9,1885.8,5.30278]
[1742323423409,7.88569073,1885.9,1885.8,5.3972077]
[1742323424530,7.88569073,1885.9,1885.8,0.0944277]
[1742323425549,7.88569073,1885.9,1885.8,5.3972077]
[1742323426567,7.88569073,1885.9,1885.8,0.0944277]
[1742323428915,14.55359073,1885.9,1885.8,0.0944277]
[1742323429137,0.8154,1885.6,1885.4,5.30386]
[1742323429344,7.88569073,1885.5,1885.4,5.30386]
[1742323430554,7.88569073,1885.5,1885.3,5.30401]
[1742323431052,7.88569073,1885.5,1885.0,14.96460478]
[1742323431053,13.18933073,1885.5,1885.2,5.30447]
[1742323431226,2.77269073,1885.3,1885.2,5.30447]
[1742323432014,2.77269073,1885.3,1885.1,5.30471]
[1742323432015,4.27409968,1885.3,1885.0,5.30501]
[1742323432319,2.77269073,1885.1,1885.0,5.30501]
[1742323436720,3.17689381,1885.3,1885.2,5.30447]
[1742323436915,2.77269073,1885.3,1885.2,5.30447]
[1742323439364,3.17422066,1885.3,1885.2,5.30447]
[1742323440153,1.21502993,1885.3,1885.2,5.30447]
[1742323440340,3.98772066,1885.3,1885.2,5.30447]
[1742323441076,4.38649273,1885.3,1885.0,5.305]
[1742323441286,2.77269073,1885.1,1885.0,5.305]
[1742323441578,7.88569073,1885.1,1885.0,5.305]
[1742323443859,7.88569073,1885.1,1885.0,5.38786764]
[1742323444058,7.88569073,1885.1,1885.0,0.08286764]
[1742323444916,7.88569073,1885.1,1885.0,5.38789764]
[1742323445431,5.113,1885.1,1885.0,5.38789764]
[1742323445620,5.113,1885.1,1885.0,6.17369764]
[1742323446598,5.113,1885.1,1885.0,5.38789764]
[1742323446921,7.88569073,1885.2,1885.1,5.30475]
[1742323447079,7.88569073,1885.2,1885.0,5.38789764]
[1742323447281,7.88569073,1885.2,1885.1,0.08312065]
[1742323448009,7.88569073,1885.2,1885.0,5.30486]
[1742323448208,7.88569073,1885.2,1885.1,0.08303209]
[1742323448521,7.88569073,1885.2,1885.1,5.38778209]
[1742323448819,7.88569073,1885.2,1885.1,0.08303209]
[1742323449255,7.88569073,1885.2,1885.1,5.38778209]
[1742323455235,2.77269073,1885.2,1885.1,5.38778209]
[1742323455439,8.9607128,1885.2,1885.1,0.08303209]
[1742323456784,8.9607128,1885.2,1885.1,5.38778209]
[1742323457187,8.64329073,1885.2,1885.1,5.38778209]
[1742323457405,7.88569073,1885.2,1885.1,5.38778209]
[1742323458294,7.88569073,1885.2,1885.1,0.08303209]
[1742323458609,7.88569073,1885.2,1885.1,5.38778209]
[1742323461022,7.88569073,1885.2,1885.1,0.08303209]
[1742323462710,7.88569073,1885.2,1885.1,5.38778209]
[1742323463496,7.88569073,1885.2,1885.1,0.08303209]
[1742323463799,7.88569073,1885.2,1885.1,5.38778209]
[1742323464270,7.88569073,1885.2,1885.1,0.08303209]
[1742323465930,7.88569073,1885.2,1885.1,5.38778209]
[1742323469545,2.77269073,1885.2,1885.1,5.38778209]
[1742323469734,5.113,1885.4,1885.2,6.11377]
[1742323469936,3.17802279,1885.5,1885.4,5.30391]
[1742323470311,2.77269073,1885.5,1885.4,6.19660899]
[1742323470534,2.77269073,1885.5,1885.4,7.34668889]
[1742323471127,5.113,1885.7,1885.6,5.30335]
[1742323471370,5.113,1885.7,1885.6,6.10575]
[1742323471641,5.113,1885.7,1885.6,6.18914899]
[1742323472851,5.113,1885.7,1885.6,5.38674899]
[1742323473235,8.27857313,1885.8,1885.7,5.30307]
[1742323473635,8.27857313,1885.8,1885.7,5.38583658]
[1742323474672,8.27857313,1885.8,1885.7,0.08276658]
[1742323475424,13.58135313,1885.8,1885.5,5.30358]
[1742323475621,2.77269073,1885.6,1885.5,5.30358]
[1742323475821,2.77269073,1885.6,1885.4,5.30389]
[1742323476066,5.54538146,1885.6,1885.4,5.30389]
[1742323476356,2.77269073,1885.6,1885.4,5.30389]
[1742323476568,2.77269073,1885.6,1885.4,5.30375]
[1742323476964,2.77269073,1885.6,1885.4,10.60751]
[1742323477340,2.77269073,1885.6,1885.5,5.30363]
[1742323478332,2.77269073,1885.6,1885.4,10.60756]
[1742323478554,3.1267398,1885.6,1885.4,5.30375]
[1742323478866,6.11324,1885.5,1885.1,10.60915]
[1742323479063,2.77269073,1885.3,1885.1,5.3045]
[1742323479745,2.77269073,1885.3,1885.0,5.30499]
[1742323479981,2.77269073,1885.1,1885.0,5.30499]
[1742323483785,3.1716201,1885.1,1885.0,5.30499]
[1742323485796,7.88469073,1885.2,1885.1,5.30475]
[1742323487551,8.27480947,1885.2,1885.1,5.30475]
[1742323488857,8.27480947,1885.2,1885.1,5.38476293]
[1742323489966,6.68291,1885.7,1885.3,0.8219]
[1742323489967,0.8298,1885.7,1885.3,0.8219]
[1742323490193,7.88469073,1885.6,1885.3,0.8219]
[1742323490414,7.88469073,1885.6,1885.4,0.08039243]
[1742323490694,7.88469073,1885.6,1885.5,5.30335]
[1742323490892,7.88469073,1885.6,1885.5,5.38369182]
[1742323492887,8.28485831,1885.6,1885.5,5.38369182]
[1742323493394,8.28485831,1885.6,1885.5,6.45244]
[1742323493691,18.3054,1886.0,1885.8,5.30257]
[1742323493889,17.554,1886.0,1885.8,5.30257]
[1742323494092,17.554,1886.0,1885.9,5.38265206]
[1742323494292,17.554,1886.0,1885.9,0.08015206]
[1742323494700,22.665,1886.0,1885.7,5.30298]
[1742323494907,17.554,1886.0,1885.9,0.07965884]
[1742323495100,23.4904,1886.0,1885.6,5.30323]
[1742323495300,23.4904,1886.0,1885.9,0.07965884]
[1742323495598,5.30265,1885.9,1885.5,3.0]
[1742323495808,5.111,1885.8,1885.5,3.0]
[1742323496171,5.9227,1885.8,1885.5,3.0]
[1742323496501,5.9227,1885.8,1885.4,10.60749]
[1742323496703,5.9227,1885.8,1885.5,5.30362]
[1742323497371,5.9227,1885.8,1885.4,5.30373]
[1742323498209,11.22553,1885.8,1885.4,5.30373]
[1742323500635,0.7953,1885.5,1885.3,5.84519478]
[1742323501279,0.7953,1885.5,1885.3,11.14937478]
[1742323501604,5.11,1885.5,1885.2,5.30425]
[1742323501794,5.11,1885.5,1885.1,6.08757]
[1742323501999,10.41374,1885.5,1885.1,6.08757]
[1742323502178,0.8287,1885.4,1885.1,11.39218]
[1742323502378,0.8287,1885.4,1885.1,7.226728]
[1742323502607,0.8287,1885.4,1885.1,12.531358]
[1742323502810,0.8287,1885.4,1885.1,12.531398]
[1742323503005,0.8287,1885.4,1885.2,5.30445]
[1742323503398,0.8287,1885.4,1885.1,12.531388]
[1742323503710,0.8287,1885.4,1885.2,5.30444]
[1742323503886,0.8287,1885.4,1885.2,5.38371934]
[1742323504513,0.40738494,1885.4,1885.2,5.38371934]
[1742323504716,5.11,1885.5,1885.3,0.53837193]
[1742323505006,5.11,1885.5,1885.4,0.07974729]
[1742323505173,5.9423,1885.5,1885.2,5.30447]
[1742323505382,5.9423,1885.5,1885.3,0.07974729]
[1742323505792,5.11,1885.5,1885.3,0.07974729]
[1742323505993,10.41368,1885.5,1885.3,0.07974729]
[1742323506310,0.7991,1885.4,1885.3,0.07974729]
[1742323506688,5.11,1885.5,1885.3,10.68799729]
[1742323506890,5.51693993,1885.5,1885.4,5.30391]
[1742323507216,5.51693993,1885.5,1885.4,5.38356875]
[1742323508082,5.51693993,1885.5,1885.4,6.19716875]
[1742323508281,5.11,1885.5,1885.4,7.34729162]
[1742323508597,0.823,1885.8,1885.6,5.30319]
[1742323508916,5.11,1885.8,1885.7,5.38243697]
[1742323509441,5.11,1885.8,1885.7,0.07950697]
[1742323509708,5.50516944,1885.8,1885.7,5.38257697]
[1742323509913,5.50516944,1885.8,1885.7,0.07950697]
[1742323510295,5.50516944,1885.8,1885.7,5.38257697]
[1742323512423,0.39516944,1885.8,1885.7,5.38257697]
[1742323512622,5.11,1885.8,1885.7,6.45115767]
[1742323512790,0.39271296,1885.8,1885.7,6.45115767]
[1742323512997,22.664,1886.0,1885.9,5.3025]
[1742323513216,0.7895,1886.2,1886.0,5.30202]
[1742323513529,17.551,1886.6,1886.0,5.30202]
[1742323513530,0.39710081,1886.4,1886.3,5.3013]
[1742323513731,5.11,1886.4,1886.3,5.3013]
[1742323513935,5.50765927,1886.4,1886.3,0.07879883]
[1742323514137,5.50765927,1886.4,1886.3,5.38017883]
[1742323514438,5.50765927,1886.4,1886.3,0.07879883]
[1742323514798,0.7895,1886.5,1886.3,5.38017883]
[1742323515030,5.11,1886.4,1886.3,5.38017883]
[1742323515534,5.11,1886.4,1886.3,0.07879883]
[1742323516536,5.11,1886.4,1886.3,5.38017883]
[1742323516742,5.11,1886.5,1886.4,10.60207]
[1742323517032,5.11,1886.5,1886.4,0.07852075]
[1742323517331,5.11,1886.5,1886.4,5.3011]
[1742323517539,5.11,1886.5,1886.4,5.37962075]
[1742323517746,5.109,1886.5,1886.4,5.37962075]
[1742323518500,17.551,1886.6,1886.5,5.30082]
[1742323518702,22.66,1886.6,1886.5,5.30082]
[1742323518905,22.66,1886.6,1886.5,5.37934075]
[1742323519144,22.66,1886.6,1886.5,6.21034075]
[1742323519916,17.551,1886.6,1886.5,6.21034075]
[1742323520717,0.8212,1886.9,1886.6,5.30028]
[1742323520918,5.109,1886.7,1886.6,5.30028]
[1742323521961,0.8212,1886.9,1886.8,5.29997]
[1742323522255,5.108,1886.9,1886.6,5.30054]
[1742323522413,5.108,1886.9,1886.6,10.60093]
[1742323522737,5.108,1886.9,1886.8,5.29997]
[1742323523504,0.67128587,1887.0,1886.8,5.29997]
[1742323523705,5.108,1886.9,1886.8,5.29997]
[1742323524557,5.108,1886.9,1886.7,5.30016]
[1742323524913,5.108,1886.9,1886.7,10.60032]
[1742323525114,5.108,1886.9,1886.7,10.6003]
[1742323525344,5.108,1886.9,1886.7,5.30014]
[1742323526142,5.108,1886.9,1886.7,10.60026]
[1742323526939,5.108,1886.9,1886.8,5.29997]
[1742323528743,5.108,1886.9,1886.7,5.30012]
[1742323529342,5.108,1886.9,1886.3,6.05843]
[1742323529343,5.30059,1886.6,1886.3,6.05843]
[1742323529540,0.752,1886.8,1886.3,3.0]
[1742323529843,0.752,1886.8,1886.4,0.7571]
[1742323530058,0.752,1886.8,1886.5,5.30082]
[1742323530240,5.30032,1886.7,1886.4,5.30104]
[1742323530410,5.905572,1886.7,1886.4,5.30102]
[1742323530741,5.021832,1886.4,1886.2,16.44822478]
[1742323531049,5.107,1886.4,1886.3,5.30138]
[1742323532583,0.752,1886.6,1886.4,5.3011]
[1742323532777,5.107,1886.5,1886.4,5.3011]
[1742323533976,5.107,1886.5,1886.4,5.37525473]
[1742323537363,5.107,1886.5,1886.4,0.07415473]
[1742323537547,6.02127653,1886.5,1886.4,0.07415473]
[1742323537749,6.02127653,1886.5,1886.4,5.3011]
[1742323537942,5.107,1886.5,1886.4,5.3011]
[1742323538292,5.107,1886.5,1886.4,5.37519163]
[1742323538643,5.107,1886.5,1886.4,10.67629163]
[1742323539359,5.107,1886.5,1886.4,11.50179163]
[1742323539592,18.21379409,1887.0,1886.7,5.30024]
[1742323539798,5.107,1886.9,1886.8,5.29997]
[1742323540093,18.21379409,1887.0,1886.8,5.374314]
[1742323540295,5.107,1886.9,1886.8,5.374314]
[1742323541498,18.21379409,1887.0,1886.9,5.29969]
[1742323541697,23.32079409,1887.0,1886.9,5.37404662]
[1742323542096,22.649,1887.0,1886.9,5.37404662]
[1742323544112,22.649,1887.0,1886.9,0.07435662]
[1742323544311,5.8879,1887.0,1886.8,10.59968]
[1742323544500,5.8879,1887.0,1886.9,5.37404662]
[1742323544701,5.107,1887.0,1886.9,5.37404662]
[1742323545902,0.40279106,1887.2,1887.1,5.29913]
[1742323546102,5.106,1887.2,1887.1,5.29913]
[1742323546315,5.106,1887.2,1887.1,5.37104973]
[1742323546514,0.7612,1887.3,1887.1,5.37104973]
[1742323546702,5.106,1887.2,1887.1,5.37104973]
[1742323547114,5.106,1887.2,1887.1,0.07191973]
[1742323548020,5.106,1887.2,1887.0,5.2994]
[1742323548215,5.106,1887.2,1887.1,0.07176834]
[1742323548733,5.49689492,1887.2,1887.1,0.07176834]
[1742323548940,5.106,1887.2,1887.1,5.37089834]
[1742323550243,5.106,1887.2,1887.1,0.07176834]
[1742323550806,5.106,1887.2,1886.9,5.29965]
[1742323551007,10.40488,1887.2,1887.0,0.07083479]
[1742323551735,6.07433,1887.1,1887.0,0.07083479]
[1742323551949,6.07433,1887.1,1886.7,5.30012]
[1742323552104,6.07433,1887.1,1887.0,0.07086002]
[1742323552305,6.07433,1887.1,1886.8,5.29986]
[1742323552531,6.07433,1887.1,1887.0,0.07086002]
[1742323552741,6.07433,1887.1,1886.8,5.29986]
[1742323552941,6.07433,1887.1,1887.0,0.07086002]
[1742323553149,6.07433,1887.1,1886.8,5.29986]
[1742323553352,6.07433,1887.1,1887.0,0.07086002]
[1742323553521,6.07433,1887.1,1886.8,5.29986]
[1742323553720,6.07433,1887.1,1887.0,0.07086002]
[1742323553921,6.07433,1887.1,1886.8,5.29986]
[1742323554123,6.07433,1887.1,1887.0,0.07086002]
[1742323554684,6.07433,1887.1,1886.7,5.30008]
[1742323554999,6.07433,1887.1,1887.0,0.07086002]
[1742323555287,0.7752,1887.1,1887.0,0.07086002]
[1742323555498,0.7752,1887.1,1886.8,10.59971]
[1742323555696,0.7752,1887.1,1887.0,0.07086002]
[1742323555989,0.7752,1887.1,1886.9,10.59927]
[1742323556150,0.7752,1887.1,1887.0,0.07086002]
[1742323556851,5.50614404,1887.2,1887.0,0.07086002]
[1742323557065,16.10408404,1887.2,1886.9,5.2996]
[1742323557387,10.80504404,1887.2,1887.1,0.07101138]
[1742323557594,10.80504404,1887.2,1886.9,5.2996]
[1742323557777,10.80504404,1887.2,1887.1,0.07101138]
[1742323557978,10.80504404,1887.2,1886.9,5.2996]
[1742323558289,10.80504404,1887.2,1886.9,5.29959]
[1742323558485,10.80504404,1887.2,1887.0,0.07101138]
[1742323558655,5.50614404,1887.2,1887.0,0.07101138]
[1742323559452,10.80501404,1887.2,1887.0,0.07101138]
[1742323559975,16.10412404,1887.2,1887.0,0.07101138]
[1742323560179,5.50614404,1887.2,1886.6,0.8133]
[1742323560384,11.38535,1886.8,1886.5,5.30081]
[1742323560570,11.38535,1886.8,1886.4,5.30092]
[1742323560571,0.7851,1887.1,1886.4,0.8224]
[1742323560763,5.105,1886.9,1886.5,0.8224]
[1742323560974,10.80400404,1887.2,1886.8,6.12237]
[1742323561165,10.40386,1887.2,1886.8,6.12237]
[1742323561393,15.70288,1887.2,1886.8,6.12237]
[1742323561595,10.40386,1887.2,1886.8,6.12217]
[1742323561898,5.29923,1887.1,1886.8,0.8224]
[1742323562099,5.29923,1887.1,1886.8,5.29993]
[1742323563399,5.29923,1887.1,1886.6,6.12279]
[1742323563592,5.50996793,1887.2,1886.8,5.29995]
[1742323563805,5.50996793,1887.2,1886.9,6.12205]
[1742323564021,1.05106184,1887.5,1886.9,2.08386419]
[1742323564316,5.29841,1887.4,1887.0,5.29938]
[1742323564613,6.08314,1887.5,1887.1,5.29904]
[1742323564765,6.48958301,1887.5,1887.1,6.36547039]
[1742323565082,0.40644301,1887.5,1887.2,6.17553133]
[1742323565280,5.2981,1887.5,1887.2,6.17553133]
[1742323565471,5.2981,1887.5,1887.2,7.4296365]
[1742323565709,5.29776,1887.6,1887.2,12.7283565]
[1742323566071,10.59458,1887.8,1887.3,5.29836]
[1742323566302,5.2972,1887.8,1887.5,6.08882]
[1742323566505,11.19726,1887.9,1887.5,11.38665]
[1742323566822,6.09226,1887.9,1887.6,0.06566346]
[1742323566973,0.7953,1887.9,1887.6,5.36330346]
[1742323567309,0.7808,1888.0,1887.6,5.36336346]
[1742323567497,5.70523609,1888.0,1887.6,5.36322346]
[1742323567700,5.70523609,1888.0,1887.6,10.66082346]
[1742323568075,0.40851609,1888.0,1887.7,6.08821]
[1742323568306,6.07671,1888.3,1887.8,5.29692]
[1742323568491,5.29615,1888.2,1887.8,5.36202881]
[1742323568690,0.768,1888.2,1887.8,0.06510881]
[1742323568890,5.2968,1888.0,1887.6,10.40161]
[1742323569094,5.2968,1888.0,1887.9,0.06510881]
[1742323569283,5.2968,1888.0,1887.6,10.40161]
[1742323569483,5.29637,1888.1,1887.9,0.06510881]
[1742323569732,5.29637,1888.1,1887.6,15.69917]
[1742323569948,6.06407,1888.2,1888.0,0.06510881]
[1742323570146,6.06407,1888.2,1887.8,6.11777]
[1742323570319,6.06407,1888.2,1888.1,0.06510881]
[1742323570520,6.06407,1888.2,1887.8,6.11777]
[1742323570720,6.06407,1888.2,1888.1,0.06510881]
[1742323570956,6.06407,1888.2,1887.8,6.11777]
[1742323571163,6.06407,1888.2,1888.1,0.06510881]
[1742323571320,6.06407,1888.2,1887.8,6.11777]
[1742323571669,6.06407,1888.2,1888.1,0.06510881]
[1742323571818,6.06407,1888.2,1887.8,6.11777]
[1742323572014,6.06405,1888.2,1887.9,0.06510881]
[1742323572464,6.06405,1888.2,1887.8,5.29704]
[1742323572758,6.06405,1888.2,1888.0,0.06510881]
[1742323572959,5.29632,1888.1,1888.0,0.06510881]
[1742323573169,5.29632,1888.1,1887.7,6.12514]
[1742323573473,5.29632,1888.1,1888.0,0.06510881]
[1742323573672,0.39361063,1888.3,1888.1,5.2961]
[1742323574032,0.39875092,1888.3,1888.0,5.29659]
[1742323574363,5.29576,1888.3,1888.1,0.06299118]
[1742323574570,5.29576,1888.3,1887.8,6.12485]
[1742323574571,5.86518409,1888.3,1887.8,6.12485]
[1742323574773,6.07902,1888.1,1887.7,5.29743]
[1742323574988,5.29662,1888.0,1887.7,5.29741]
[1742323575134,11.37556,1888.1,1887.7,5.29741]
[1742323575565,6.07902,1888.1,1887.7,5.29741]
[1742323576536,6.07902,1888.1,1887.6,11.20636]
[1742323576537,5.29682,1888.0,1887.6,11.20636]
[1742323576785,5.29689,1887.9,1887.6,6.10236]
[1742323576931,5.29682,1888.0,1887.6,6.10236]
[1742323577349,5.29682,1888.0,1887.6,11.39992]
[1742323577550,5.29682,1888.0,1887.6,6.10236]
[1742323577773,5.29682,1888.0,1887.6,6.10235]
[1742323577977,5.2973,1887.8,1887.4,5.29817]
[1742323578292,5.2973,1887.8,1887.3,9.07355]
[1742323578293,5.29754,1887.7,1887.3,6.07355]
[1742323578496,10.39954,1887.7,1887.3,6.07355]
[1742323578704,5.102,1887.7,1887.5,5.29774]
[1742323578882,5.102,1887.7,1887.6,0.0586495]
[1742323579196,6.08016,1888.1,1887.7,0.775]
[1742323579395,10.39836,1888.1,1887.7,0.775]
[1742323579609,5.102,1888.1,1887.8,5.29702]
[1742323579814,5.102,1888.1,1887.8,5.3556695]
[1742323580015,5.102,1888.1,1887.8,10.6527295]
[1742323580314,5.102,1888.1,1887.8,10.6526895]
[1742323580610,5.102,1888.1,1887.8,11.85675215]
[1742323581367,5.102,1888.1,1887.9,5.29677]
[1742323581810,5.102,1888.1,1888.0,0.0586495]
[1742323582115,5.52159062,1888.1,1888.0,0.0586495]
[1742323582611,10.81791062,1888.1,1888.0,0.0586495]
[1742323582970,10.81791062,1888.1,1887.8,5.297]
[1742323583175,16.11442062,1888.1,1887.9,0.0586495]
[1742323583389,10.81791062,1888.1,1887.9,0.0586495]
[1742323583586,10.81791062,1888.1,1887.7,11.98274695]
[1742323583911,10.81791062,1888.1,1888.0,0.0586495]
[1742323584408,10.81791062,1888.1,1887.8,5.29714]
[1742323584597,10.81791062,1888.1,1888.0,0.0586495]
[1742323584812,10.81791062,1888.1,1887.8,5.29714]
[1742323585018,10.81791062,1888.1,1888.0,0.0586495]
[1742323585213,10.81791062,1888.1,1887.8,5.29714]
[1742323585414,5.52159062,1888.1,1888.0,0.0586495]
[1742323587326,0.41959062,1888.1,1888.0,5.3552595]
[1742323587528,0.0200475,1888.1,1888.0,6.1113595]
[1742323588832,0.0200475,1888.1,1888.0,6.16431545]
[1742323589038,0.0200475,1888.1,1888.0,7.820615]
[1742323589333,0.0200475,1888.1,1888.0,16.61285383]
[1742323590939,0.0200475,1888.1,1888.0,17.67477439]
[1742323592562,7.5e-06,1888.1,1888.0,17.67477439]
[1742323593259,0.803,1889.3,1888.2,5.84519478]
[1742323593464,0.803,1889.3,1888.9,0.8073]
[1742323593610,5.29336,1889.2,1888.8,5.29434]
[1742323593810,5.29336,1889.2,1889.0,0.0576419]
[1742323594008,5.29336,1889.2,1888.9,0.0552195]
[1742323594256,6.09596,1889.3,1888.9,5.29402]
[1742323594410,5.29326,1889.2,1889.0,0.0552195]
[1742323594935,5.29326,1889.2,1889.1,0.05485444]
[1742323595140,6.50187047,1889.3,1888.8,5.29413]
[1742323595364,6.50204047,1889.3,1888.9,5.34878444]
[1742323595647,5.29337,1889.2,1888.9,0.05485444]
[1742323596005,5.29337,1889.2,1888.8,5.29417]
[1742323596256,5.29337,1889.2,1888.7,6.10193]
[1742323596257,5.29352,1889.1,1889.0,0.05485444]
[1742323596663,5.29414,1888.9,1888.5,5.84519478]
[1742323596964,5.29428,1888.9,1888.4,5.2953]
[1742323597122,10.42137,1888.8,1888.4,5.2953]
[1742323597323,5.29511,1888.6,1888.3,0.7903]
[1742323597627,5.29521,1888.5,1888.2,5.29604]
[1742323597952,0.7694,1888.4,1888.0,13.87022474]
[1742323598157,11.19391,1888.4,1888.0,12.79802433]
[1742323598336,11.19391,1888.4,1888.0,18.09442433]
[1742323598515,11.19391,1888.4,1888.0,11.14159478]
[1742323599133,11.19391,1888.4,1888.0,16.43800478]
[1742323599334,5.8984,1888.4,1888.1,5.2962]
[1742323599510,5.8984,1888.4,1888.2,5.29594]
[1742323599720,5.129,1888.4,1888.1,5.29608]
[1742323599933,5.129,1888.4,1888.1,6.41020748]
[1742323600133,5.129,1888.4,1888.2,5.29589]
[1742323600334,6.07652,1888.6,1888.2,5.29589]
[1742323600667,5.139,1888.4,1888.2,5.29589]
[1742323600825,5.139,1888.4,1888.2,10.59176]
[1742323601036,5.139,1888.4,1888.2,5.29587]
[1742323601254,5.139,1888.4,1888.2,10.59171]
[1742323601456,5.29477,1888.7,1888.3,6.09893]
[1742323601626,5.136,1888.7,1888.4,5.29525]
[1742323601840,1.17172671,1888.8,1888.5,5.2951]
[1742323602043,5.135,1888.7,1888.5,5.2951]
[1742323602446,0.39032671,1888.8,1888.6,5.29475]
[1742323602652,5.29359,1889.1,1888.7,5.29448]
[1742323602653,5.134,1888.9,1888.7,5.29448]
[1742323603162,5.134,1888.9,1888.8,5.29436]
[1742323605426,5.134,1888.9,1888.8,6.353244]
[1742323605627,5.132,1889.1,1889.0,5.29379]
[1742323607132,5.132,1889.1,1888.6,0.7774]
[1742323607465,5.132,1889.1,1888.7,5.29461]
[1742323607666,5.132,1889.1,1888.8,10.58835]
[1742323608061,5.132,1889.1,1888.9,5.29406]
[1742323608270,5.133,1889.0,1888.9,10.58792]
[1742323608965,5.133,1889.0,1888.9,11.35372]
[1742323609143,5.133,1889.0,1888.9,12.489092]
[1742323609543,6.10488,1889.4,1889.0,5.29362]
[1742323609740,5.129,1889.3,1889.0,10.58725]
[1742323610072,5.128,1889.3,1889.0,10.58725]
[1742323610367,5.128,1889.3,1889.0,5.29362]
[1742323610666,5.128,1889.3,1888.7,6.05183]
[1742323610864,6.06642,1889.1,1888.7,5.29453]
[1742323611080,6.06642,1889.1,1888.7,10.589]
[1742323611241,0.7727,1889.1,1888.8,5.29412]
[1742323611454,0.7727,1889.1,1888.9,5.29402]
[1742323612136,5.126,1889.1,1888.9,5.29402]
[1742323612845,5.126,1889.1,1889.0,5.2938]
[1742323613277,5.126,1889.1,1888.8,6.04876]
[1742323613438,5.126,1889.1,1888.9,5.29406]
[1742323613835,5.126,1889.1,1888.8,10.58846]
[1742323614445,5.126,1889.1,1888.9,5.29408]
[1742323614653,10.41954,1889.1,1888.8,5.2942]
[1742323615307,2.76494854,1888.9,1888.8,5.29422]
[1742323616210,0.1113971,1889.6,1889.2,5.29301]
[1742323616516,0.1113971,1889.6,1889.2,5.29324]
[1742323616517,2.76494854,1889.3,1889.2,5.29324]
[1742323616875,2.76494854,1889.3,1889.2,6.05094]
[1742323617111,2.76494854,1889.4,1889.3,5.29285]
[1742323617983,2.76494854,1889.4,1889.3,6.956542]
[1742323619436,2.76494854,1889.4,1889.3,7.00946609]
[1742323619800,2.76494854,1889.4,1889.3,7.00946544]
[1742323620804,2.87634564,1889.6,1889.5,6.0654]
[1742323621005,2.87634564,1889.6,1889.5,7.201196]
[1742323621233,0.1113971,1889.6,1889.5,10.201196]
[1742323621945,7.1e-06,1889.6,1889.5,10.201196]
[1742323622151,0.02,1890.2,1890.1,5.29072]
[1742323622318,0.02,1890.2,1890.1,15.44258678]
[1742323625953,1e-05,1890.2,1890.1,15.44258678]
[1742323627631,1e-05,1890.2,1890.1,15.99258678]
[1742323629719,2.87634564,1891.4,1891.3,5.28736]
[1742323629926,2.87634564,1891.4,1891.1,6.11037]
[1742323630232,2.87634564,1891.4,1891.2,5.28758]
[1742323630437,2.87634564,1891.4,1891.3,5.28736]
[1742323631219,2.87634564,1891.4,1891.2,5.28758]
[1742323632463,2.87634564,1891.4,1891.2,10.57505]
[1742323632658,2.87634564,1891.4,1891.2,5.28747]
[1742323632960,0.1113971,1891.4,1891.1,6.721277]
[1742323633159,2.76494854,1891.3,1891.2,5.28764]
[1742323633562,0.1113971,1891.4,1891.3,5.28736]
[1742323633779,0.1113971,1891.4,1891.3,8.28736]
[1742323635880,0.1113971,1891.4,1891.3,3.0]
[1742323635881,2.87634564,1891.4,1891.3,3.0]
[1742323636378,2.87634564,1891.4,1891.2,5.28751]
[1742323636539,2.87634564,1891.4,1891.1,8.28776]
[1742323636877,2.76494854,1891.2,1890.9,5.28847]
[1742323637054,2.76494854,1891.0,1890.8,16.42237478]
[1742323637241,2.76494854,1891.0,1890.8,11.13373478]
[1742323637440,8.40724339,1891.0,1890.6,16.42356478]
[1742323637677,2.76494854,1890.8,1890.6,5.28908]
[1742323637984,2.76494854,1890.8,1890.7,5.28904]
[1742323638474,2.76494854,1891.0,1890.8,5.28862]
[1742323638853,2.76494854,1891.0,1890.9,5.28848]
[1742323639055,2.76494854,1891.0,1890.8,5.28862]
[1742323639252,2.76494854,1891.0,1890.7,5.28899]
[1742323639462,2.76494854,1890.8,1890.6,10.57828]
[1742323639668,5.9407,1891.1,1890.7,5.2889]
[1742323639905,2.76494854,1890.9,1890.8,5.28874]
[1742323640793,6.53477,1891.1,1890.9,5.28838]
[1742323640794,5.9407,1891.1,1890.9,5.28838]
[1742323640996,2.76494854,1891.0,1890.6,3.8212]
[1742323641205,2.76494854,1890.8,1890.6,5.28919]
[1742323641605,2.76494854,1890.8,1890.6,10.57835]
[1742323641768,2.76494854,1890.8,1890.7,5.28904]
[1742323641969,2.76494854,1890.8,1890.6,5.28916]
[1742323642302,0.78,1890.7,1890.5,5.84518478]
[1742323642514,2.76494854,1890.6,1890.5,5.84518478]
[1742323642872,2.76494854,1890.6,1890.4,5.28986]
[1742323643071,2.76494854,1890.6,1890.3,5.29013]
[1742323643271,2.76494854,1890.4,1890.3,5.29013]
[1742323644408,0.8071,1890.9,1890.8,5.28876]
[1742323644573,3.57204854,1890.9,1890.7,10.5779]
[1742323644767,3.57204854,1890.9,1890.8,5.28876]
[1742323645199,3.57204854,1890.9,1890.7,5.28889]
[1742323645610,3.57204854,1890.9,1890.7,5.28888]
[1742323645906,3.57204854,1890.9,1890.8,5.28876]
[1742323646877,2.76494854,1890.9,1890.8,5.28876]
[1742323648993,2.76494854,1890.9,1890.7,5.28888]
[1742323649291,2.76494854,1890.9,1890.6,5.28921]
[1742323649501,2.76494854,1890.7,1890.6,5.28921]